bitfinex/quotes_BTCUSD_20251202
["timestamp","ask_amount","ask_price","bid_price","bid_amount"]
[1764678985760,0.22934429,87352.0,87350.0,0.001]
[1764678986456,0.22896393,87350.0,87349.0,0.01152]
[1764678987405,0.22896393,87350.0,87349.0,0.0275]
[1764678987610,0.22896393,87350.0,87349.0,0.05026]
[1764678987820,0.22896393,87350.0,87349.0,0.05126]
[1764678988032,0.22896393,87350.0,87349.0,0.0285]
[1764678988669,0.22896393,87350.0,87349.0,0.05126]
[1764678989548,0.24079222,87352.0,87349.0,0.05126]
[1764678989549,0.0003833,87352.0,87349.0,0.05126]
[1764678989752,0.0003833,87352.0,87351.0,0.01598]
[1764678989972,0.0003833,87352.0,87351.0,0.03874]
[1764678990742,0.0003833,87352.0,87351.0,0.06348386]
[1764678990955,0.22934199,87352.0,87351.0,0.06448386]
[1764678991155,0.22934199,87352.0,87351.0,0.04158773]
[1764678991622,0.0003833,87352.0,87351.0,0.04158773]
[1764678993482,0.22934199,87352.0,87351.0,0.04158773]
[1764678994006,0.0003833,87352.0,87351.0,0.04158773]
[1764678997042,0.0003833,87352.0,87351.0,0.27054904]
[1764678997475,0.0003833,87352.0,87351.0,0.04158773]
[1764678997845,0.0003833,87352.0,87351.0,0.27054904]
[1764678998460,0.0003833,87352.0,87351.0,0.04158773]
[1764678998891,0.22934199,87352.0,87351.0,0.04158773]
[1764678999069,0.0003833,87352.0,87351.0,0.04158773]
[1764678999698,0.0003833,87352.0,87351.0,0.27054904]
[1764678999915,0.0003833,87352.0,87351.0,0.04158773]
[1764679000127,0.22934199,87352.0,87351.0,0.04158773]
[1764679000714,0.22934199,87352.0,87351.0,0.00284773]
[1764679001303,0.24771199,87352.0,87351.0,0.00284773]
[1764679002017,0.22934199,87352.0,87351.0,0.00284773]
[1764679002419,0.22934199,87352.0,87351.0,0.05030773]
[1764679002841,0.22934199,87352.0,87351.0,0.00284773]
[1764679004774,0.22934199,87352.0,87351.0,0.05097773]
[1764679005653,0.22934199,87352.0,87351.0,0.02114773]
[1764679006217,0.0003833,87352.0,87351.0,0.05097773]
[1764679006418,0.0003833,87352.0,87351.0,0.27993904]
[1764679007072,0.0003833,87352.0,87351.0,0.05097773]
[1764679007475,0.22934199,87352.0,87351.0,0.05097773]
[1764679007676,0.0003833,87352.0,87351.0,0.05097773]
[1764679008007,0.22934199,87352.0,87351.0,0.05097773]
[1764679008602,0.25392642,87352.0,87351.0,0.00284773]
[1764679012642,0.02496773,87352.0,87351.0,0.00284773]
[1764679012841,0.02496773,87352.0,87351.0,0.27993904]
[1764679012842,0.0003833,87352.0,87351.0,0.27993904]
[1764679013187,0.0003833,87352.0,87351.0,0.60293904]
[1764679013581,0.0003833,87352.0,87351.0,0.37397773]
[1764679013902,0.0003833,87352.0,87351.0,0.39221773]
[1764679014252,0.0003833,87352.0,87351.0,0.62017904]
[1764679014652,0.0003833,87352.0,87351.0,0.62217904]
[1764679021621,0.01144295,87390.0,87385.0,0.01144361]
[1764679021851,2.0,87389.0,87386.0,0.22886949]
[1764679022000,0.02461928,87388.0,87386.0,0.22886949]
[1764679022209,0.2288684,87387.0,87385.0,0.00011473]
[1764679022402,0.01144308,87389.0,87385.0,0.22898686]
[1764679022652,2.01144282,87391.0,87386.0,0.01144348]
[1764679022806,2.0,87389.0,87386.0,0.01144348]
[1764679023024,2.0,87390.0,87387.0,0.01144334]
[1764679023436,0.22885918,87390.0,87387.0,0.01144334]
[1764679023774,0.003,87390.0,87387.0,0.01144334]
[1764679023975,0.001,87389.0,87386.0,0.2403107]
[1764679024181,0.001,87389.0,87388.0,0.22886437]
[1764679024315,0.001,87389.0,87387.0,0.2288645]
[1764679024833,0.001,87389.0,87386.0,0.24031292]
[1764679025035,0.001,87389.0,87387.0,0.22886699]
[1764679025480,0.002,87389.0,87387.0,0.22886699]
[1764679025854,0.002,87389.0,87388.0,0.22886437]
[1764679026666,0.001,87389.0,87388.0,0.24030758]
[1764679026883,0.003,87389.0,87388.0,0.24030758]
[1764679027289,0.001,87389.0,87388.0,0.01144321]
[1764679027503,0.2288618,87389.0,87386.0,0.24031291]
[1764679027667,0.22886153,87390.0,87388.0,0.00068869]
[1764679027865,0.2402995,87391.0,87387.0,0.24030972]
[1764679028166,0.002,87389.0,87388.0,0.22886216]
[1764679028371,2.0,87391.0,87389.0,0.22886158]
[1764679028770,2.0,87392.0,87390.0,0.22885913]
[1764679028969,2.0,87395.0,87394.0,0.22884866]
[1764679029193,2.0,87405.0,87401.0,0.01144151]
[1764679029455,2.0,87404.0,87401.0,0.24026963]
[1764679029651,2.0,87402.0,87400.0,0.24027385]
[1764679029852,2.0,87402.0,87400.0,0.01144164]
[1764679030008,2.0,87402.0,87400.0,0.24027446]
[1764679030690,2.0,87402.0,87401.0,0.22883033]
[1764679030864,2.0,87402.0,87400.0,0.24027446]
[1764679031070,2.0,87401.0,87400.0,0.01144164]
[1764679031273,2.0,87401.0,87398.0,0.0114419]
[1764679031506,2.0,87401.0,87399.0,0.22883347]
[1764679031708,2.0,87401.0,87400.0,0.22883295]
[1764679031845,2.0,87401.0,87399.0,0.22883347]
[1764679032576,2.0,87401.0,87398.0,0.24027981]
[1764679032919,2.001,87401.0,87398.0,0.24027981]
[1764679033087,2.0,87400.0,87399.0,0.22883537]
[1764679033288,2.0,87400.0,87398.0,0.24027981]
[1764679033504,2.0,87400.0,87399.0,0.22883557]
[1764679034020,2.0,87400.0,87398.0,0.22883785]
[1764679034139,2.0,87400.0,87397.0,0.01144204]
[1764679034140,2.001,87400.0,87397.0,0.01144204]
[1764679034349,0.001,87400.0,87397.0,0.01144204]
[1764679034558,0.001,87400.0,87398.0,0.22883592]
[1764679035183,0.2422762,87400.0,87396.0,0.24028543]
[1764679035385,0.08575006,87397.0,87396.0,0.24028543]
[1764679036553,0.08575006,87397.0,87394.0,0.01144243]
[1764679036727,0.08575006,87397.0,87395.0,0.22884493]
[1764679036963,0.08675006,87397.0,87396.0,0.22884342]
[1764679037407,0.08575006,87397.0,87396.0,0.22884342]
[1764679037735,0.08675006,87397.0,87396.0,0.22884342]
[1764679037886,0.08575006,87397.0,87396.0,0.22884342]
[1764679039271,0.08675006,87397.0,87396.0,0.22884342]
[1764679039488,0.08675006,87397.0,87395.0,0.22884493]
[1764679039685,0.08675006,87397.0,87396.0,0.00043822]
[1764679040144,0.08675006,87397.0,87396.0,0.22928164]
[1764679043510,0.08675006,87397.0,87396.0,0.00043822]
[1764679043683,0.001,87397.0,87396.0,0.28975164]
[1764679044501,0.001,87397.0,87396.0,0.24313164]
[1764679045075,0.001,87397.0,87396.0,0.22928164]
[1764679047247,0.001,87397.0,87396.0,0.00043822]
[1764679047370,0.001,87397.0,87396.0,0.22928164]
[1764679050157,0.001,87397.0,87396.0,0.26170164]
[1764679050323,0.001,87397.0,87396.0,0.28975164]
[1764679051102,0.35729957,87406.0,87405.0,0.22881986]
[1764679051296,2.0,87406.0,87405.0,0.22881986]
[1764679051918,2.0,87410.0,87407.0,0.22881344]
[1764679052153,2.0,87410.0,87409.0,0.24737939]
[1764679052370,2.0,87419.0,87418.0,0.22878583]
[1764679052569,2.02463197,87419.0,87418.0,0.22878583]
[1764679052767,2.22878387,87419.0,87416.0,0.01143955]
[1764679052967,2.0,87417.0,87416.0,0.22879054]
[1764679053197,2.0,87418.0,87415.0,0.2402315]
[1764679053367,0.08575006,87416.0,87415.0,0.2402315]
[1764679053604,0.08575006,87416.0,87415.0,0.24034623]
[1764679054750,0.08675006,87416.0,87415.0,0.24034623]
[1764679055357,0.08675006,87416.0,87415.0,0.28696623]
[1764679055358,0.001,87416.0,87415.0,0.28696623]
[1764679056007,0.003,87416.0,87415.0,0.28696623]
[1764679058074,0.23179106,87416.0,87415.0,0.01868473]
[1764679059343,0.23179106,87416.0,87415.0,0.04364473]
[1764679062748,0.31754112,87416.0,87415.0,0.00011473]
[1764679064117,0.31754112,87416.0,87415.0,0.01690473]
[1764679064428,0.23179106,87416.0,87415.0,0.01690473]
[1764679064621,0.23179106,87416.0,87415.0,0.00011473]
[1764679064826,0.36115112,87416.0,87415.0,0.00011473]
[1764679067779,0.31754112,87416.0,87415.0,0.00011473]
[1764679068011,0.003,87416.0,87415.0,0.04186473]
[1764679068974,0.003,87416.0,87415.0,0.01690473]
[1764679068975,0.23179106,87416.0,87415.0,0.01690473]
[1764679069383,0.003,87416.0,87415.0,0.01690473]
[1764679069586,0.003,87416.0,87415.0,0.27065841]
[1764679074745,0.001,87416.0,87415.0,0.27065841]
[1764679074988,0.32594507,87429.0,87426.0,0.22876423]
[1764679075160,0.32594507,87429.0,87428.0,0.01289]
[1764679076286,0.32694507,87429.0,87428.0,0.01289]
[1764679076634,0.32594507,87429.0,87428.0,0.01289]
[1764679076842,0.08575006,87444.0,87438.0,0.24017009]
[1764679076843,2.0,87441.0,87438.0,0.24017009]
[1764679077060,0.08575006,87440.0,87439.0,0.02496]
[1764679077226,2.08575006,87440.0,87439.0,0.25368869]
[1764679077441,2.08575006,87440.0,87439.0,0.02496]
[1764679077593,2.0,87439.0,87437.0,0.22873579]
[1764679077789,2.0,87439.0,87438.0,0.2287335]
[1764679077995,2.0,87439.0,87438.0,0.2455235]
[1764679078190,2.0,87439.0,87438.0,0.2704835]
[1764679078390,2.0,87439.0,87438.0,0.2455235]
[1764679078592,2.0,87439.0,87437.0,0.22873579]
[1764679078813,2.0,87439.0,87438.0,0.2287335]
[1764679079014,2.002,87439.0,87438.0,0.2287335]
[1764679079176,0.002,87439.0,87438.0,0.2287335]
[1764679079694,0.003,87439.0,87438.0,0.2287335]
[1764679080131,0.08575006,87440.0,87439.0,0.22873088]
[1764679080969,0.00632,87446.0,87444.0,0.22871621]
[1764679081289,0.00632,87446.0,87442.0,0.24015865]
[1764679081290,2.01143575,87445.0,87442.0,0.24015865]
[1764679081475,0.01143602,87443.0,87435.0,0.22874135]
[1764679081692,0.31648086,87440.0,87437.0,0.0114368]
[1764679081865,0.32791727,87440.0,87437.0,0.0114368]
[1764679082049,0.22873244,87439.0,87437.0,0.0114368]
[1764679082393,0.22873244,87439.0,87436.0,0.24017527]
[1764679082808,0.00138377,87440.0,87438.0,0.24552207]
[1764679082978,0.23011224,87440.0,87438.0,0.01679]
[1764679083177,0.22873088,87439.0,87438.0,0.01679]
[1764679083596,0.22973088,87439.0,87438.0,0.01679]
[1764679083779,0.23301088,87439.0,87435.0,0.22873912]
[1764679083976,0.01143719,87434.0,87426.0,0.02959824]
[1764679084181,0.24018632,87434.0,87429.0,0.22875704]
[1764679084382,0.24017964,87435.0,87430.0,0.2287521]
[1764679084592,0.22874687,87433.0,87430.0,0.24018982]
[1764679085118,0.24118176,87434.0,87430.0,0.24018982]
[1764679085324,0.22874945,87432.0,87430.0,0.24018982]
[1764679085524,0.01143732,87433.0,87430.0,0.24018982]
[1764679085729,0.24018476,87433.0,87430.0,0.24018982]
[1764679086229,0.22874996,87432.0,87429.0,0.01143785]
[1764679086573,0.22874996,87432.0,87429.0,0.24019272]
[1764679086821,0.24118476,87433.0,87430.0,0.22875379]
[1764679087395,0.24018476,87433.0,87430.0,0.22875379]
[1764679087808,0.228741,87436.0,87433.0,0.22874428]
[1764679088047,0.00038377,87440.0,87439.0,0.22873088]
[1764679088237,0.00038377,87440.0,87439.0,0.27566088]
[1764679088629,0.00038377,87440.0,87439.0,0.24741088]
[1764679089231,0.00038377,87440.0,87439.0,0.22873088]
[1764679089892,0.00138377,87440.0,87439.0,0.22873088]
[1764679090271,0.00338377,87440.0,87439.0,0.22873088]
[1764679090881,0.00238377,87440.0,87439.0,0.22873088]
[1764679091075,0.00038377,87440.0,87439.0,0.22873088]
[1764679096276,0.00038377,87440.0,87438.0,0.24191278]
[1764679096718,0.00038377,87440.0,87439.0,0.22873088]
[1764679098159,0.00038377,87440.0,87438.0,0.24191278]
[1764679098364,0.00038377,87440.0,87439.0,0.22873088]
[1764679099800,0.00038377,87440.0,87438.0,0.22873278]
[1764679100247,0.00038377,87440.0,87439.0,0.22873088]
[1764679103747,0.0001716,87440.0,87439.0,0.22873088]
[1764679104115,0.0001716,87440.0,87435.0,0.01143706]
[1764679104116,0.01143719,87434.0,87423.0,0.02432863]
[1764679104317,0.09718765,87431.0,87427.0,0.01143811]
[1764679104518,0.00805,87430.0,87427.0,0.24019976]
[1764679104718,0.01735,87428.0,87423.0,0.01143863]
[1764679105081,0.00662,87426.0,87424.0,0.0114385]
[1764679105243,0.00662,87426.0,87425.0,0.22876751]
[1764679106071,0.02397,87426.0,87425.0,0.22876751]
[1764679107664,0.01143876,87422.0,87419.0,0.24690164]
[1764679107897,0.2402161,87422.0,87420.0,0.22878009]
[1764679108091,0.2402161,87422.0,87419.0,0.01812]
[1764679108092,0.22877798,87421.0,87419.0,0.01812]
[1764679108250,0.01143942,87417.0,87412.0,0.01144007]
[1764679108446,0.24023474,87415.0,87411.0,0.0114402]
[1764679108649,0.01143955,87416.0,87412.0,0.24024138]
[1764679108870,0.32597831,87417.0,87413.0,0.24023669]
[1764679109036,0.32597831,87417.0,87414.0,0.2287958]
[1764679109245,0.32597831,87417.0,87413.0,0.24023669]
[1764679109246,0.22879121,87416.0,87413.0,0.24023669]
[1764679109459,0.22879892,87413.0,87410.0,0.22880627]
[1764679109659,0.01143981,87414.0,87410.0,0.22880428]
[1764679109889,0.01143981,87414.0,87408.0,0.01363]
[1764679109890,0.01143994,87413.0,87408.0,0.01363]
[1764679110277,0.01143994,87413.0,87407.0,0.01812]
[1764679110278,0.0114402,87411.0,87407.0,0.01812]
[1764679110484,0.22880677,87410.0,87407.0,0.24693237]
[1764679110737,0.24024907,87411.0,87407.0,0.25858527]
[1764679110942,0.24024726,87410.0,87407.0,0.25858527]
[1764679111141,0.22881006,87409.0,87407.0,0.0116529]
[1764679111352,0.24024726,87410.0,87407.0,0.0116529]
[1764679111353,0.236152,87408.0,87407.0,0.00021217]
[1764679111737,0.00734,87408.0,87407.0,0.00021217]
[1764679111962,0.00734,87408.0,87407.0,0.22902679]
[1764679112360,0.01143994,87424.0,87415.0,0.01143968]
[1764679112597,2.0,87432.0,87429.0,0.01143785]
[1764679112798,2.0,87433.0,87429.0,0.2401924]
[1764679113143,2.0,87432.0,87429.0,0.01143785]
[1764679113298,0.03438007,87437.0,87434.0,0.01143719]
[1764679113500,2.0,87439.0,87437.0,0.24017071]
[1764679113720,2.0,87439.0,87437.0,0.25842071]
[1764679113935,2.01143654,87439.0,87436.0,0.01363]
[1764679114130,0.24017266,87438.0,87435.0,0.22874103]
[1764679114331,0.01143745,87432.0,87424.0,0.0250685]
[1764679114510,0.01143745,87432.0,87424.0,0.0114385]
[1764679114511,0.00617,87425.0,87424.0,0.0114385]
[1764679114709,0.00617,87425.0,87424.0,0.24020644]
[1764679115731,0.00617,87425.0,87422.0,0.01816]
[1764679115930,0.01760837,87425.0,87422.0,0.01837217]
[1764679116136,0.00617,87425.0,87423.0,0.22877113]
[1764679116333,0.09192006,87425.0,87423.0,0.22877113]
[1764679118656,0.32068762,87425.0,87422.0,0.00021217]
[1764679118863,0.24598274,87423.0,87422.0,0.00021217]
[1764679119274,0.27086274,87423.0,87422.0,0.00021217]
[1764679120754,0.24598274,87423.0,87422.0,0.00021217]
[1764679120913,0.27086274,87423.0,87422.0,0.00021217]
[1764679121947,0.24598274,87423.0,87422.0,0.00021217]
[1764679122386,0.27086274,87423.0,87422.0,0.00021217]
[1764679124164,0.24598274,87423.0,87422.0,0.00021217]
[1764679125932,0.33212599,87425.0,87422.0,0.00021217]
[1764679125933,0.08575006,87425.0,87422.0,0.00021217]
[1764679126081,0.22875029,87432.0,87427.0,0.22876228]
[1764679126524,0.2401922,87430.0,87427.0,0.22876228]
[1764679126677,0.2401922,87430.0,87423.0,0.24021022]
[1764679126678,0.22876269,87427.0,87423.0,0.24021022]
[1764679126876,0.22876448,87427.0,87424.0,0.22876988]
[1764679127478,0.22876583,87426.0,87423.0,0.24021022]
[1764679127718,0.22877274,87423.0,87422.0,0.00021217]
[1764679128054,0.23494274,87423.0,87422.0,0.00021217]
[1764679128341,0.3206928,87423.0,87422.0,0.00021217]
[1764679129411,0.3627828,87423.0,87422.0,0.00021217]
[1764679129727,0.3379028,87423.0,87422.0,0.00021217]
[1764679130083,0.3627828,87423.0,87422.0,0.00021217]
[1764679131042,0.3379028,87423.0,87422.0,0.00021217]
[1764679131998,0.3627828,87423.0,87422.0,0.00021217]
[1764679136362,0.3379028,87423.0,87422.0,0.00021217]
[1764679136715,0.3627828,87423.0,87422.0,0.00021217]
[1764679140005,0.3809028,87423.0,87422.0,0.00021217]
[1764679140225,0.3145228,87423.0,87422.0,0.00021217]
[1764679141360,0.3566128,87423.0,87422.0,0.00021217]
[1764679144749,0.44377373,87423.0,87422.0,0.00021217]
[1764679144954,0.47815987,87423.0,87422.0,0.00021217]
[1764679145804,0.45327987,87423.0,87422.0,0.00021217]
[1764679145980,0.43606987,87423.0,87422.0,0.00021217]
[1764679146180,0.3145228,87423.0,87422.0,0.00021217]
[1764679146404,0.3145228,87423.0,87422.0,0.01690217]
[1764679146604,0.3145228,87423.0,87422.0,0.00021217]
[1764679148889,0.08575006,87423.0,87422.0,0.22898753]
[1764679149091,0.08575006,87423.0,87422.0,0.24567753]
[1764679149539,0.24017258,87438.0,87434.0,0.22874169]
[1764679149743,0.09718699,87436.0,87433.0,0.02378]
[1764679150168,0.32592611,87436.0,87433.0,0.02378]
[1764679150396,0.08575006,87436.0,87433.0,0.26396291]
[1764679150783,0.08575006,87436.0,87435.0,0.22874135]
[1764679150992,0.08775006,87436.0,87435.0,0.22874135]
[1764679151659,0.08575006,87436.0,87435.0,0.22874135]
[1764679152004,0.08675006,87436.0,87435.0,0.22574135]
[1764679152183,0.08575006,87436.0,87435.0,0.22574135]
[1764679152388,2.00769,87443.0,87442.0,0.22872303]
[1764679152590,2.0,87448.0,87444.0,0.24015194]
[1764679152776,2.0,87448.0,87445.0,0.2401486]
[1764679152971,0.23640041,87447.0,87445.0,0.24014854]
[1764679153216,2.0,87446.0,87444.0,0.01143589]
[1764679153574,2.0,87445.0,87442.0,0.01143615]
[1764679153779,2.0,87445.0,87443.0,0.22872018]
[1764679154203,2.0,87444.0,87442.0,0.01143615]
[1764679154402,0.001,87443.0,87442.0,0.01143615]
[1764679154601,0.24015098,87445.0,87442.0,0.01143615]
[1764679154800,2.0,87444.0,87442.0,0.2401588]
[1764679155584,0.001,87443.0,87442.0,0.2401588]
[1764679155774,0.24115098,87445.0,87442.0,0.2401588]
[1764679155975,2.0,87444.0,87442.0,0.2401588]
[1764679156395,0.22872528,87442.0,87439.0,0.24016731]
[1764679156629,0.01702,87443.0,87439.0,0.24016731]
[1764679156630,0.08575006,87440.0,87439.0,0.24016731]
[1764679157807,0.08575006,87440.0,87437.0,0.24016507]
[1764679158207,0.08575006,87440.0,87438.0,0.22873261]
[1764679159531,0.01702,87439.0,87438.0,0.22873261]
[1764679160281,0.01702,87439.0,87436.0,0.22873731]
[1764679160483,0.02845654,87439.0,87437.0,0.22873573]
[1764679160654,0.01702,87439.0,87438.0,0.2287335]
[1764679161096,0.08575006,87440.0,87438.0,0.2287335]
[1764679161297,0.08575006,87440.0,87439.0,0.22873088]
[1764679167255,0.10120006,87440.0,87438.0,0.2287335]
[1764679167428,0.08575006,87440.0,87439.0,0.22873088]
[1764679168747,0.00617,87451.0,87447.0,0.01143549]
[1764679168940,0.01760497,87451.0,87448.0,0.22870653]
[1764679169185,0.24630678,87451.0,87447.0,0.24014542]
[1764679169552,0.22870965,87448.0,87445.0,0.24015053]
[1764679169749,0.22870965,87448.0,87446.0,0.22871251]
[1764679170101,0.22870542,87449.0,87446.0,0.22871251]
[1764679170300,0.22870542,87449.0,87447.0,0.2287088]
[1764679170301,0.01143523,87449.0,87447.0,0.2287088]
[1764679170852,0.003,87448.0,87447.0,0.2287088]
[1764679171254,0.0004,87450.0,87448.0,0.22870636]
[1764679171603,0.003,87449.0,87448.0,0.22870636]
[1764679171768,0.001,87449.0,87448.0,0.22870636]
[1764679172894,0.0004,87450.0,87448.0,0.22870636]
[1764679173312,0.0014,87450.0,87448.0,0.22870636]
[1764679173491,0.0014,87450.0,87449.0,0.22870473]
[1764679174392,0.0034,87450.0,87449.0,0.22870473]
[1764679174596,0.00144387,87450.0,87447.0,0.24014527]
[1764679174782,0.01187897,87450.0,87447.0,0.24014527]
[1764679174980,0.01387897,87450.0,87447.0,0.24014527]
[1764679175230,0.22870473,87449.0,87446.0,0.24014792]
[1764679175434,0.24258185,87450.0,87447.0,0.22870895]
[1764679175653,0.22870473,87449.0,87447.0,0.01143549]
[1764679175863,0.22870734,87448.0,87446.0,0.24014792]
[1764679176004,0.22870734,87448.0,87446.0,0.01143562]
[1764679176207,0.01143536,87448.0,87444.0,0.24015187]
[1764679176430,0.228712,87447.0,87444.0,0.24015187]
[1764679176629,0.22871717,87445.0,87442.0,0.01173]
[1764679176795,0.22871717,87445.0,87442.0,0.24045111]
[1764679176996,0.24214343,87448.0,87445.0,0.22871318]
[1764679177393,0.24014343,87448.0,87445.0,0.22871318]
[1764679178430,0.24014343,87448.0,87445.0,0.24014893]
[1764679178628,0.22871064,87447.0,87445.0,0.24014893]
[1764679179627,0.24114343,87448.0,87445.0,0.24014893]
[1764679180047,0.002,87447.0,87445.0,0.24014893]
[1764679180247,0.003,87447.0,87445.0,0.24014893]
[1764679180658,0.001,87447.0,87445.0,0.24014893]
[1764679180865,0.24014343,87448.0,87445.0,0.24014893]
[1764679181072,0.24214343,87448.0,87445.0,0.24014893]
[1764679181883,0.22871036,87447.0,87445.0,0.24014893]
[1764679182522,0.22871036,87447.0,87444.0,0.24015327]
[1764679182707,0.23071036,87447.0,87444.0,0.24015327]
[1764679183205,0.01143602,87443.0,87436.0,0.01143693]
[1764679183411,0.01143602,87443.0,87440.0,0.22872779]
[1764679183710,0.2401571,87443.0,87440.0,0.2401642]
[1764679184009,0.22871569,87445.0,87442.0,0.22872303]
[1764679184173,0.22871569,87445.0,87442.0,0.01143615]
[1764679184372,0.22871569,87445.0,87442.0,0.24015844]
[1764679184591,0.22871821,87444.0,87442.0,0.24015844]
[1764679185385,0.001,87443.0,87442.0,0.24015844]
[1764679185677,0.24015144,87445.0,87442.0,0.24015844]
[1764679186063,0.001,87444.0,87442.0,0.24015844]
[1764679186502,0.001,87444.0,87443.0,0.22872042]
[1764679186698,0.01143536,87448.0,87443.0,0.01143602]
[1764679186878,0.23199686,87449.0,87446.0,0.22871052]
[1764679187075,0.22870792,87448.0,87445.0,0.24014901]
[1764679188641,0.22970792,87448.0,87445.0,0.24014901]
[1764679189051,0.002,87448.0,87446.0,0.24014741]
[1764679189251,0.002,87448.0,87447.0,0.22870996]
[1764679189405,0.001,87448.0,87447.0,0.22870996]
[1764679189611,0.01831,87448.0,87446.0,0.24014741]
[1764679189812,0.01931,87448.0,87446.0,0.24014741]
[1764679190013,0.01731,87448.0,87446.0,0.24014741]
[1764679190218,0.01831,87448.0,87446.0,0.24014741]
[1764679190445,0.02031,87448.0,87446.0,0.24014741]
[1764679191553,0.003,87448.0,87446.0,0.24014741]
[1764679191756,0.22970838,87448.0,87446.0,0.01143562]
[1764679191923,0.22970838,87448.0,87445.0,0.24014637]
[1764679191924,0.01443536,87448.0,87445.0,0.24014637]
[1764679192125,0.01443536,87448.0,87446.0,0.22871155]
[1764679192319,0.24314404,87448.0,87445.0,0.24014637]
[1764679192546,0.22871067,87447.0,87445.0,0.24014637]
[1764679192753,0.00044387,87450.0,87448.0,0.55170734]
[1764679192925,0.00044387,87450.0,87449.0,0.59179473]
[1764679193138,0.03080397,87479.0,87477.0,0.24006309]
[1764679193139,0.08575006,87479.0,87477.0,0.24006309]
[1764679193338,0.08579394,87479.0,87478.0,0.25527891]
[1764679193550,0.08579394,87479.0,87478.0,0.27969891]
[1764679194211,0.08579394,87479.0,87478.0,0.23808891]
[1764679195265,0.00204388,87479.0,87478.0,0.24581891]
[1764679195469,0.0004,87490.0,87489.0,0.22860016]
[1764679195699,0.00044386,87490.0,87489.0,0.30143016]
[1764679195896,0.00044386,87490.0,87489.0,0.32433016]
[1764679196953,0.00044386,87490.0,87489.0,0.32633016]
[1764679197839,0.0004,87510.0,87499.0,0.57447404]
[1764679197981,0.0004,87520.0,87519.0,0.5744218]
[1764679198184,0.00044387,87520.0,87519.0,0.6097318]
[1764679198435,0.00044387,87520.0,87519.0,0.6341518]
[1764679198614,0.00044387,87520.0,87519.0,0.63872972]
[1764679199025,0.0004,87540.0,87529.0,0.55149569]
[1764679199227,0.00078353,87530.0,87529.0,0.62910569]
[1764679200455,0.0004,87540.0,87537.0,0.57437481]
[1764679200662,0.0004,87540.0,87537.0,0.63410481]
[1764679201323,0.0004,87540.0,87537.0,0.59308481]
[1764679201556,0.0004,87540.0,87537.0,0.61120481]
[1764679201795,0.0004,87540.0,87537.0,0.28920481]
[1764679202211,0.0004,87540.0,87537.0,0.28820481]
[1764679202443,0.0004,87540.0,87537.0,0.29220481]
[1764679202671,0.0004,87540.0,87537.0,0.28820481]
[1764679202874,0.0004,87540.0,87537.0,0.05973]
[1764679203101,0.0004,87540.0,87537.0,0.08563]
[1764679203304,0.0004,87540.0,87537.0,0.06751]
[1764679203638,0.01182334,87540.0,87537.0,0.02112]
[1764679203822,0.0004,87540.0,87537.0,0.02112]
[1764679204318,0.0004,87540.0,87537.0,0.03531]
[1764679204753,0.0004,87540.0,87529.0,0.25301864]
[1764679204754,0.2399087,87534.0,87529.0,0.0131]
[1764679204967,0.2399087,87534.0,87525.0,0.0114253]
[1764679204968,0.01142465,87530.0,87525.0,0.01812]
[1764679205178,0.01142465,87530.0,87525.0,0.0295453]
[1764679205392,0.01142465,87530.0,87525.0,0.01812]
[1764679205393,0.01142478,87529.0,87525.0,0.01812]
[1764679205647,0.23992446,87528.0,87525.0,0.01812]
[1764679205856,0.01142491,87528.0,87525.0,0.01812]
[1764679206225,0.01142491,87528.0,87523.0,0.0131]
[1764679206483,0.02858543,87524.0,87513.0,0.01184]
[1764679206688,0.23994583,87520.0,87514.0,0.01812]
[1764679206895,0.01142595,87520.0,87514.0,0.01812]
[1764679207117,0.01142595,87520.0,87513.0,0.00038353]
[1764679207118,0.01142648,87516.0,87513.0,0.00038353]
[1764679207320,0.01142622,87518.0,87513.0,0.0118104]
[1764679207536,0.01142635,87517.0,87513.0,0.00038353]
[1764679207765,0.23995459,87517.0,87513.0,0.0118104]
[1764679207938,0.01142635,87517.0,87513.0,0.0118104]
[1764679208143,0.23995417,87517.0,87513.0,0.0118104]
[1764679208295,0.01142635,87517.0,87513.0,0.00038353]
[1764679208508,0.2399544,87517.0,87513.0,0.00038353]
[1764679208713,0.25022863,87519.0,87513.0,0.24034711]
[1764679208922,0.02170609,87519.0,87515.0,0.01142661]
[1764679209499,0.22853351,87515.0,87513.0,0.00038353]
[1764679209855,0.01716,87514.0,87513.0,0.00038353]
[1764679210242,0.22853351,87515.0,87513.0,0.00038353]
[1764679210451,0.01812,87522.0,87514.0,0.01142674]
[1764679210726,0.01128,87519.0,87515.0,0.01142661]
[1764679210927,0.01128,87519.0,87515.0,0.23995649]
[1764679211105,0.01142635,87517.0,87513.0,0.0118104]
[1764679211311,0.23995392,87517.0,87514.0,0.01142674]
[1764679211509,0.01142635,87517.0,87514.0,0.01142674]
[1764679211920,0.01142635,87517.0,87513.0,0.0118104]
[1764679212108,0.23995374,87517.0,87513.0,0.0118104]
[1764679212479,0.01142622,87518.0,87514.0,0.2399616]
[1764679212800,0.08575006,87527.0,87521.0,0.22851583]
[1764679213008,0.08575006,87527.0,87521.0,0.25178132]
[1764679213214,0.23993196,87525.0,87521.0,0.02326582]
[1764679213418,0.01142517,87526.0,87521.0,0.25178107]
[1764679213721,0.31425141,87527.0,87524.0,0.01142543]
[1764679213722,0.08575006,87527.0,87524.0,0.01142543]
[1764679214177,0.08575006,87527.0,87523.0,0.23993617]
[1764679214386,0.31425127,87527.0,87523.0,0.23293617]
[1764679214592,0.001,87526.0,87523.0,0.23293617]
[1764679214802,0.001,87526.0,87524.0,0.22850855]
[1764679215118,0.08575006,87527.0,87524.0,0.22850855]
[1764679215119,0.08675006,87527.0,87524.0,0.23993398]
[1764679215296,0.08675006,87527.0,87525.0,0.22850389]
[1764679215701,0.001,87526.0,87524.0,0.01142543]
[1764679216097,0.08675006,87527.0,87524.0,0.01142543]
[1764679216301,0.08675006,87527.0,87524.0,0.23993388]
[1764679216631,0.32567681,87527.0,87523.0,0.01142556]
[1764679216818,0.32667681,87527.0,87523.0,0.01142556]
[1764679217121,0.08675006,87527.0,87524.0,0.01142543]
[1764679217317,0.08775006,87527.0,87526.0,0.22850353]
[1764679217536,0.08675006,87527.0,87525.0,0.22850536]
[1764679217717,0.08575006,87527.0,87525.0,0.22850536]
[1764679217918,0.08775006,87527.0,87525.0,0.22850536]
[1764679218241,0.08675006,87527.0,87525.0,0.22850536]
[1764679218441,0.22846254,87542.0,87524.0,0.01142543]
[1764679218442,0.03434323,87535.0,87527.0,0.2285004]
[1764679218595,0.00448047,87538.0,87537.0,0.22847481]
[1764679218799,0.00448047,87538.0,87537.0,0.25737481]
[1764679219002,0.00448047,87538.0,87537.0,0.28247481]